[Event "Titled Tuesday Blitz March 29 Early 2022"]
[White "Andreikin, Dmitry"]
[Black "Sanal, Vahap"]
[WhiteFideId "4158814"]
[BlackFideId "6300545"]
[WhiteElo "2736"]
[BlackElo "2603"]
[Result "1-0"]
[Round "09"]
[TimeControl "180+1"]
[Date "2022.03.29"]
[WhiteClock "0:00:32"]
[BlackClock "0:00:03"]

1. d4 {[%clk 0:03:00]}  Nf6 {[%clk 0:02:48]} 2. Nf3 {[%clk 0:03:00]}  d5 {[%clk 0:02:44]} 3. c4 {[%clk 0:03:00]}  e6 {[%clk 0:02:45]} 4. g3 {[%clk 0:03:00]}  Bb4+ {[%clk 0:02:43]} 5. Bd2 {[%clk 0:03:00]}  Bxd2+ {[%clk 0:02:43]} 6. Nbxd2 {[%clk 0:02:59]}  c6 {[%clk 0:02:44]} 7. Bg2 {[%clk 0:02:58]}  O-O {[%clk 0:02:42]} 8. O-O {[%clk 0:02:58]}  b6 {[%clk 0:02:42]} 9. Re1 {[%clk 0:02:43]}  Ba6 {[%clk 0:02:38]} 10. Rc1 {[%clk 0:02:38]}  Nbd7 {[%clk 0:02:31]} 11. e4 {[%clk 0:02:38]}  dxe4 {[%clk 0:02:21]} 12. Nxe4 {[%clk 0:02:32]}  Nxe4 {[%clk 0:02:20]} 13. Rxe4 {[%clk 0:02:33]}  Nf6 {[%clk 0:02:05]} 14. Rh4 {[%clk 0:02:22]}  c5 {[%clk 0:01:51]} 15. Ne5 {[%clk 0:02:19]}  Rc8 {[%clk 0:01:51]} 16. Qa4 {[%clk 0:02:18]}  g5 {[%clk 0:01:37]} 17. Rh6 {[%clk 0:02:11]}  Qxd4 {[%clk 0:01:33]} 18. Re1 {[%clk 0:01:42]}  Kg7 {[%clk 0:01:18]} 19. Rxf6 {[%clk 0:01:42]}  Kxf6 {[%clk 0:01:19]} 20. Qxa6 {[%clk 0:01:37]}  Rc7 {[%clk 0:01:19]} 21. Qb5 {[%clk 0:01:31]}  Kg7 {[%clk 0:01:16]} 22. Nf3 {[%clk 0:01:24]}  Qf6 {[%clk 0:01:16]} 23. h3 {[%clk 0:01:20]}  Rd8 {[%clk 0:01:16]} 24. Qb3 {[%clk 0:01:21]}  Rcd7 {[%clk 0:01:11]} 25. Qe3 {[%clk 0:01:20]}  h6 {[%clk 0:01:08]} 26. b3 {[%clk 0:01:19]}  Rd3 {[%clk 0:01:05]} 27. Qe4 {[%clk 0:01:18]}  Rd1 {[%clk 0:00:44]} 28. Kh2 {[%clk 0:01:18]}  Rxe1 {[%clk 0:00:44]} 29. Qxe1 {[%clk 0:01:17]}  Rd3 {[%clk 0:00:30]} 30. Qe2 {[%clk 0:01:14]}  Rc3 {[%clk 0:00:26]} 31. Ne5 {[%clk 0:01:10]}  Rc1 {[%clk 0:00:24]} 32. Bf3 {[%clk 0:01:01]}  Rb1 {[%clk 0:00:18]} 33. Bh5 {[%clk 0:00:53]}  Qd8 {[%clk 0:00:10]} 34. Bxf7 {[%clk 0:00:30]}  Qd4 {[%clk 0:00:09]} 35. Qc2 {[%clk 0:00:31]}  Qxe5 {[%clk 0:00:04]} 36. Qg6+ {[%clk 0:00:30]}  Kf8 {[%clk 0:00:04]} 37. Qg8+ {[%clk 0:00:30]}  Ke7 {[%clk 0:00:05]} 38. Qe8+ {[%clk 0:00:31]}  Kd6 {[%clk 0:00:03]} 39. Qb8+ {[%clk 0:00:31]}  Ke7 {[%clk 0:00:03]} 40. Qxe5 {[%clk 0:00:32]}  Kxf7 {[%clk 0:00:03]} 41. Qc7+ {[%clk 0:00:32]} 1-0


[Site "https://www.chess.com"]

[Event "Titled Tuesday Blitz March 29 Early 2022"]
[White "Aravindh, Chithambaram VR."]
[Black "Goryachkina, Aleksandra"]
[WhiteFideId "5072786"]
[BlackFideId "4147103"]
[WhiteElo "2561"]
[BlackElo "2426"]
[Result "1-0"]
[Round "09"]
[TimeControl "180+1"]
[Date "2022.03.29"]
[WhiteClock "0:00:04"]
[BlackClock "0:00:01"]

1. b3 {[%clk 0:03:00]}  d5 {[%clk 0:02:59]} 2. Bb2 {[%clk 0:03:01]}  c6 {[%clk 0:02:56]} 3. e3 {[%clk 0:03:00]}  Nf6 {[%clk 0:02:56]} 4. f4 {[%clk 0:02:59]}  Bf5 {[%clk 0:02:53]} 5. Nf3 {[%clk 0:03:00]}  e6 {[%clk 0:02:52]} 6. Be2 {[%clk 0:02:59]}  Nbd7 {[%clk 0:02:47]} 7. O-O {[%clk 0:02:59]}  Be7 {[%clk 0:02:47]} 8. Kh1 {[%clk 0:02:46]}  h6 {[%clk 0:02:46]} 9. Qe1 {[%clk 0:02:44]}  O-O {[%clk 0:02:39]} 10. d3 {[%clk 0:02:44]}  Ng4 {[%clk 0:02:05]} 11. Bd1 {[%clk 0:02:30]}  Bf6 {[%clk 0:01:53]} 12. Nc3 {[%clk 0:02:27]}  Qb6 {[%clk 0:01:21]} 13. e4 {[%clk 0:02:10]}  dxe4 {[%clk 0:01:19]} 14. dxe4 {[%clk 0:02:11]}  Bxe4 {[%clk 0:01:10]} 15. Nxe4 {[%clk 0:01:20]}  Bxb2 {[%clk 0:01:08]} 16. Rb1 {[%clk 0:01:21]}  Bf6 {[%clk 0:01:05]} 17. Nfd2 {[%clk 0:01:13]}  Ne3 {[%clk 0:01:01]} 18. Rf3 {[%clk 0:01:12]}  Nf5 {[%clk 0:00:46]} 19. Nc4 {[%clk 0:01:09]}  Qc7 {[%clk 0:00:45]} 20. Rd3 {[%clk 0:01:06]}  Rad8 {[%clk 0:00:41]} 21. g4 {[%clk 0:01:00]}  Bh4 {[%clk 0:00:20]} 22. Qf1 {[%clk 0:00:28]}  Ne7 {[%clk 0:00:20]} 23. Ncd6 {[%clk 0:00:12]}  Nb6 {[%clk 0:00:18]} 24. f5 {[%clk 0:00:07]}  exf5 {[%clk 0:00:12]} 25. gxf5 {[%clk 0:00:08]}  Ned5 {[%clk 0:00:10]} 26. c4 {[%clk 0:00:08]}  Nf6 {[%clk 0:00:09]} 27. Nxf6+ {[%clk 0:00:04]}  Bxf6 {[%clk 0:00:09]} 28. c5 {[%clk 0:00:05]}  Nd5 {[%clk 0:00:09]} 29. Bf3 {[%clk 0:00:05]}  Be5 {[%clk 0:00:07]} 30. Nc4 {[%clk 0:00:04]}  Bxh2 {[%clk 0:00:06]} 31. Bxd5 {[%clk 0:00:04]}  cxd5 {[%clk 0:00:06]} 32. Ne3 {[%clk 0:00:04]}  Be5 {[%clk 0:00:06]} 33. b4 {[%clk 0:00:04]}  d4 {[%clk 0:00:05]} 34. Ng4 {[%clk 0:00:05]}  Bf4 {[%clk 0:00:03]} 35. Qf3 {[%clk 0:00:04]}  Qc6 {[%clk 0:00:01]} 36. Qxc6 {[%clk 0:00:03]}  bxc6 {[%clk 0:00:02]} 37. Rf1 {[%clk 0:00:03]}  Bg5 {[%clk 0:00:02]} 38. Re1 {[%clk 0:00:03]}  Rd5 {[%clk 0:00:02]} 39. Re4 {[%clk 0:00:02]}  Rxf5 {[%clk 0:00:02]} 40. Rdxd4 {[%clk 0:00:03]}  Rf1+ {[%clk 0:00:02]} 41. Kg2 {[%clk 0:00:03]}  Ra1 {[%clk 0:00:01]} 42. Ne5 {[%clk 0:00:04]}  Rxa2+ {[%clk 0:00:02]} 43. Kf3 {[%clk 0:00:03]}  a5 {[%clk 0:00:02]} 44. Nxc6 {[%clk 0:00:03]}  axb4 {[%clk 0:00:02]} 45. Nxb4 {[%clk 0:00:04]}  Rc8 {[%clk 0:00:02]} 46. Nxa2 {[%clk 0:00:04]}  Rxc5 {[%clk 0:00:01]} 47. Rd3 {[%clk 0:00:05]}  Kh7 {[%clk 0:00:01]} 48. Nc3 {[%clk 0:00:05]}  f5 {[%clk 0:00:01]} 49. Re8 {[%clk 0:00:05]}  Rc4 {[%clk 0:00:01]} 50. Nd5 {[%clk 0:00:05]}  h5 {[%clk 0:00:01]} 51. Rb3 {[%clk 0:00:05]}  Rd4 {[%clk 0:00:01]} 52. Ne3 {[%clk 0:00:04]} 1-0


[Site "https://www.chess.com"]

[Event "Titled Tuesday Blitz March 29 Early 2022"]
[White "Ardila, Oscar Humberto"]
[Black "Mogirzan, Matei-Valeriu"]
[WhiteFideId "4404742"]
[BlackFideId "1257455"]
[WhiteElo "1966"]
[BlackElo "1733"]
[Result "0-1"]
[Round "09"]
[TimeControl "180+1"]
[Date "2022.03.30"]
[WhiteClock "0:00:11"]
[BlackClock "0:00:10"]

1. d4 {[%clk 0:02:59]}  Nf6 {[%clk 0:02:55]} 2. c4 {[%clk 0:02:58]}  d6 {[%clk 0:02:56]} 3. Nf3 {[%clk 0:02:55]}  Nbd7 {[%clk 0:02:54]} 4. Nc3 {[%clk 0:02:55]}  e5 {[%clk 0:02:53]} 5. dxe5 {[%clk 0:02:50]}  dxe5 {[%clk 0:02:52]} 6. e3 {[%clk 0:02:48]}  c6 {[%clk 0:02:51]} 7. Qc2 {[%clk 0:02:47]}  Be7 {[%clk 0:02:38]} 8. Be2 {[%clk 0:02:46]}  O-O {[%clk 0:02:36]} 9. O-O {[%clk 0:02:45]}  Re8 {[%clk 0:02:24]} 10. Rd1 {[%clk 0:02:43]}  Qc7 {[%clk 0:02:23]} 11. b3 {[%clk 0:02:40]}  a5 {[%clk 0:02:17]} 12. Bb2 {[%clk 0:02:38]}  Nf8 {[%clk 0:02:14]} 13. Ne4 {[%clk 0:02:26]}  Ng6 {[%clk 0:02:02]} 14. Nxf6+ {[%clk 0:02:07]}  Bxf6 {[%clk 0:02:03]} 15. h3 {[%clk 0:02:02]}  Be6 {[%clk 0:01:44]} 16. Rd2 {[%clk 0:01:58]}  Rad8 {[%clk 0:01:31]} 17. Rad1 {[%clk 0:01:58]}  Rxd2 {[%clk 0:01:30]} 18. Rxd2 {[%clk 0:01:58]}  Rd8 {[%clk 0:01:30]} 19. Bc3 {[%clk 0:01:57]}  b6 {[%clk 0:01:05]} 20. Bd3 {[%clk 0:01:32]}  Qc8 {[%clk 0:00:56]} 21. Bf1 {[%clk 0:01:22]}  Bf5 {[%clk 0:00:52]} 22. Rxd8+ {[%clk 0:01:18]}  Bxd8 {[%clk 0:00:42]} 23. e4 {[%clk 0:01:16]}  Be6 {[%clk 0:00:35]} 24. Nxe5 {[%clk 0:01:03]}  Nf4 {[%clk 0:00:26]} 25. Qd2 {[%clk 0:00:37]}  Bg5 {[%clk 0:00:20]} 26. Qd4 {[%clk 0:00:31]}  c5 {[%clk 0:00:13]} 27. Qd6 {[%clk 0:00:27]}  Bf6 {[%clk 0:00:05]} 28. Qd2 {[%clk 0:00:21]}  Bg5 {[%clk 0:00:05]} 29. Qd1 {[%clk 0:00:17]}  h6 {[%clk 0:00:04]} 30. Nf3 {[%clk 0:00:15]}  Be7 {[%clk 0:00:03]} 31. e5 {[%clk 0:00:14]}  Ng6 {[%clk 0:00:03]} 32. Qe2 {[%clk 0:00:12]}  Bf5 {[%clk 0:00:03]} 33. Qe3 {[%clk 0:00:12]}  Qe6 {[%clk 0:00:03]} 34. g4 {[%clk 0:00:11]}  Bxg4 {[%clk 0:00:02]} 35. hxg4 {[%clk 0:00:12]}  Qxg4+ {[%clk 0:00:03]} 36. Bg2 {[%clk 0:00:12]}  Nf4 {[%clk 0:00:03]} 37. Ne1 {[%clk 0:00:10]}  Bg5 {[%clk 0:00:03]} 38. Qf3 {[%clk 0:00:09]}  Ne2+ {[%clk 0:00:03]} 39. Kf1 {[%clk 0:00:08]}  Qxf3 {[%clk 0:00:03]} 40. Bxf3 {[%clk 0:00:08]}  Nxc3 {[%clk 0:00:04]} 41. Ng2 {[%clk 0:00:08]}  Nxa2 {[%clk 0:00:04]} 42. Bc6 {[%clk 0:00:08]}  Nc1 {[%clk 0:00:04]} 43. Ke1 {[%clk 0:00:08]}  Nxb3 {[%clk 0:00:04]} 44. Ke2 {[%clk 0:00:08]}  Nd4+ {[%clk 0:00:04]} 45. Kd3 {[%clk 0:00:07]}  Nxc6 {[%clk 0:00:05]} 46. Ke4 {[%clk 0:00:07]}  a4 {[%clk 0:00:05]} 47. Kd5 {[%clk 0:00:08]}  Nxe5 {[%clk 0:00:04]} 48. Kxe5 {[%clk 0:00:07]}  a3 {[%clk 0:00:04]} 49. Ne1 {[%clk 0:00:07]}  a2 {[%clk 0:00:05]} 50. Nc2 {[%clk 0:00:08]}  Bf6+ {[%clk 0:00:05]} 51. Kd5 {[%clk 0:00:08]}  a1=Q {[%clk 0:00:05]} 52. Nxa1 {[%clk 0:00:09]}  Bxa1 {[%clk 0:00:06]} 53. Kc6 {[%clk 0:00:09]}  Bd4 {[%clk 0:00:07]} 54. f3 {[%clk 0:00:09]}  h5 {[%clk 0:00:07]} 55. Kxb6 {[%clk 0:00:09]}  h4 {[%clk 0:00:08]} 56. Kc6 {[%clk 0:00:10]}  h3 {[%clk 0:00:09]} 57. Kd5 {[%clk 0:00:11]}  h2 {[%clk 0:00:10]} 58. Ke4 {[%clk 0:00:11]}  h1=Q {[%clk 0:00:10]} 0-1


[Site "https://www.chess.com"]

[Event "Titled Tuesday Blitz March 29 Early 2022"]
[White "Caruana, Fabiano"]
[Black "Abdrlauf, Elham"]
[WhiteFideId "2020009"]
[BlackFideId "1533533"]
[WhiteElo "2744"]
[BlackElo "2334"]
[Result "0-1"]
[Round "09"]
[TimeControl "180+1"]
[Date "2022.03.29"]
[WhiteClock "0:00:03"]
[BlackClock "0:00:07"]

1. d4 {[%clk 0:03:00]}  Nf6 {[%clk 0:02:58]} 2. Nf3 {[%clk 0:03:01]}  d5 {[%clk 0:02:58]} 3. Bf4 {[%clk 0:03:01]}  c5 {[%clk 0:02:58]} 4. e3 {[%clk 0:03:01]}  Nc6 {[%clk 0:02:59]} 5. Be2 {[%clk 0:03:02]}  Bg4 {[%clk 0:02:58]} 6. O-O {[%clk 0:02:57]}  e6 {[%clk 0:02:57]} 7. Nbd2 {[%clk 0:02:53]}  Bd6 {[%clk 0:02:57]} 8. Bxd6 {[%clk 0:02:50]}  Qxd6 {[%clk 0:02:58]} 9. c3 {[%clk 0:02:46]}  O-O {[%clk 0:02:56]} 10. h3 {[%clk 0:02:46]}  Bxf3 {[%clk 0:02:55]} 11. Bxf3 {[%clk 0:02:44]}  e5 {[%clk 0:02:49]} 12. dxc5 {[%clk 0:02:44]}  Qxc5 {[%clk 0:02:49]} 13. Rc1 {[%clk 0:02:39]}  Rad8 {[%clk 0:02:47]} 14. Qa4 {[%clk 0:02:37]}  a6 {[%clk 0:02:35]} 15. Rfd1 {[%clk 0:02:37]}  g6 {[%clk 0:02:20]} 16. c4 {[%clk 0:02:29]}  d4 {[%clk 0:02:19]} 17. Nb3 {[%clk 0:02:28]}  Qa7 {[%clk 0:01:55]} 18. Bxc6 {[%clk 0:02:18]}  dxe3 {[%clk 0:01:55]} 19. Bf3 {[%clk 0:02:03]}  exf2+ {[%clk 0:01:54]} 20. Kf1 {[%clk 0:02:03]}  e4 {[%clk 0:01:50]} 21. Be2 {[%clk 0:02:02]}  e3 {[%clk 0:01:48]} 22. Bf3 {[%clk 0:01:28]}  Qb8 {[%clk 0:01:45]} 23. Ke2 {[%clk 0:01:22]}  Qf4 {[%clk 0:01:32]} 24. Qa5 {[%clk 0:01:04]}  Rde8 {[%clk 0:01:00]} 25. Rd4 {[%clk 0:01:02]}  Ne4 {[%clk 0:00:56]} 26. Rxe4 {[%clk 0:00:59]}  Rxe4 {[%clk 0:00:55]} 27. Bxe4 {[%clk 0:00:57]}  Qxe4 {[%clk 0:00:55]} 28. Qd5 {[%clk 0:00:54]}  Qe7 {[%clk 0:00:38]} 29. Rd1 {[%clk 0:00:43]}  Re8 {[%clk 0:00:35]} 30. c5 {[%clk 0:00:29]}  Qf6 {[%clk 0:00:31]} 31. Qd4 {[%clk 0:00:23]}  Qf5 {[%clk 0:00:29]} 32. Qc4 {[%clk 0:00:18]}  Qh5+ {[%clk 0:00:18]} 33. Qg4 {[%clk 0:00:12]}  Qe5 {[%clk 0:00:19]} 34. Qd4 {[%clk 0:00:12]}  Qf5 {[%clk 0:00:19]} 35. Qc4 {[%clk 0:00:11]}  Qf6 {[%clk 0:00:08]} 36. Qd4 {[%clk 0:00:10]}  Qc6 {[%clk 0:00:09]} 37. Qc4 {[%clk 0:00:05]}  Qxg2 {[%clk 0:00:07]} 38. Rf1 {[%clk 0:00:06]}  Qxh3 {[%clk 0:00:06]} 39. Qd5 {[%clk 0:00:03]}  Qg4+ {[%clk 0:00:06]} 40. Qf3 {[%clk 0:00:03]}  Qxf3+ {[%clk 0:00:06]} 41. Kxf3 {[%clk 0:00:03]}  e2 {[%clk 0:00:07]} 0-1


[Site "https://www.chess.com"]

[Event "Titled Tuesday Blitz March 29 Early 2022"]
[White "Chigaev, Maksim"]
[Black "Xiong, Jeffery"]
[WhiteFideId "4108116"]
[BlackFideId "2047640"]
[WhiteElo "2502"]
[BlackElo "2727"]
[Result "0-1"]
[Round "09"]
[TimeControl "180+1"]
[Date "2022.03.29"]
[WhiteClock "0:00:01"]
[BlackClock "0:00:03"]

1. e4 {[%clk 0:02:59]}  c5 {[%clk 0:03:00]} 2. Nf3 {[%clk 0:02:59]}  d6 {[%clk 0:03:00]} 3. d4 {[%clk 0:02:56]}  cxd4 {[%clk 0:03:01]} 4. Nxd4 {[%clk 0:02:56]}  Nf6 {[%clk 0:03:01]} 5. Nc3 {[%clk 0:02:57]}  a6 {[%clk 0:03:01]} 6. Be3 {[%clk 0:02:56]}  e5 {[%clk 0:03:00]} 7. Nf3 {[%clk 0:02:56]}  Qc7 {[%clk 0:02:58]} 8. a4 {[%clk 0:02:56]}  Be7 {[%clk 0:02:58]} 9. Be2 {[%clk 0:02:55]}  h6 {[%clk 0:02:58]} 10. a5 {[%clk 0:02:43]}  Be6 {[%clk 0:02:23]} 11. O-O {[%clk 0:02:33]}  Qc6 {[%clk 0:02:22]} 12. Nd2 {[%clk 0:02:25]}  Nbd7 {[%clk 0:02:22]} 13. Bf3 {[%clk 0:02:08]}  O-O {[%clk 0:02:22]} 14. Re1 {[%clk 0:01:57]}  Rac8 {[%clk 0:02:13]} 15. Nf1 {[%clk 0:01:50]}  Rfe8 {[%clk 0:02:06]} 16. Re2 {[%clk 0:01:40]}  Nh7 {[%clk 0:01:56]} 17. Rd2 {[%clk 0:01:36]}  Ndf6 {[%clk 0:01:41]} 18. Ng3 {[%clk 0:01:26]}  Bf8 {[%clk 0:01:34]} 19. Nd5 {[%clk 0:01:02]}  Bxd5 {[%clk 0:01:27]} 20. exd5 {[%clk 0:01:02]}  Qd7 {[%clk 0:01:27]} 21. Be2 {[%clk 0:00:52]}  g6 {[%clk 0:01:21]} 22. c4 {[%clk 0:00:51]}  h5 {[%clk 0:01:13]} 23. h3 {[%clk 0:00:50]}  h4 {[%clk 0:01:12]} 24. Nf1 {[%clk 0:00:50]}  Ne4 {[%clk 0:01:13]} 25. Rc2 {[%clk 0:00:50]}  f5 {[%clk 0:01:12]} 26. Nd2 {[%clk 0:00:44]}  Nxd2 {[%clk 0:01:01]} 27. Qxd2 {[%clk 0:00:40]}  Nf6 {[%clk 0:00:52]} 28. b4 {[%clk 0:00:40]}  Bg7 {[%clk 0:00:50]} 29. Rac1 {[%clk 0:00:36]}  Kh7 {[%clk 0:00:47]} 30. Qd1 {[%clk 0:00:27]}  Bh6 {[%clk 0:00:33]} 31. Bxh6 {[%clk 0:00:24]}  Kxh6 {[%clk 0:00:34]} 32. c5 {[%clk 0:00:17]}  dxc5 {[%clk 0:00:34]} 33. Rxc5 {[%clk 0:00:17]}  Rxc5 {[%clk 0:00:34]} 34. Rxc5 {[%clk 0:00:18]}  Qd6 {[%clk 0:00:25]} 35. Qc1+ {[%clk 0:00:18]}  g5 {[%clk 0:00:25]} 36. b5 {[%clk 0:00:13]}  axb5 {[%clk 0:00:11]} 37. Bxb5 {[%clk 0:00:13]}  Rd8 {[%clk 0:00:06]} 38. a6 {[%clk 0:00:14]}  Ne4 {[%clk 0:00:07]} 39. Rc7 {[%clk 0:00:07]}  Qb6 {[%clk 0:00:07]} 40. Rxb7 {[%clk 0:00:05]}  Qxf2+ {[%clk 0:00:07]} 41. Kh1 {[%clk 0:00:06]}  Ng3+ {[%clk 0:00:02]} 42. Kh2 {[%clk 0:00:06]}  Ne4 {[%clk 0:00:01]} 43. Kh1 {[%clk 0:00:02]}  Qg3 {[%clk 0:00:02]} 44. Bf1 {[%clk 0:00:01]}  Nf2+ {[%clk 0:00:02]} 45. Kg1 {[%clk 0:00:02]}  Nxh3+ {[%clk 0:00:03]} 46. Kh1 {[%clk 0:00:03]}  Nf2+ {[%clk 0:00:04]} 47. Kg1 {[%clk 0:00:03]}  Ne4 {[%clk 0:00:03]} 48. Qc6+ {[%clk 0:00:02]}  Rd6 {[%clk 0:00:03]} 49. Qc2 {[%clk 0:00:01]}  h3 {[%clk 0:00:03]} 0-1


[Site "https://www.chess.com"]

[Event "Titled Tuesday Blitz March 29 Early 2022"]
[White "Czerw, Dawid"]
[Black "Al-Tarboush, Ward"]
[WhiteFideId "1145746"]
[BlackFideId "7601450"]
[WhiteElo "2476"]
[BlackElo "2586"]
[Result "1-0"]
[Round "09"]
[TimeControl "180+1"]
[Date "2022.03.30"]
[WhiteClock "0:00:16"]
[BlackClock "0:01:18"]

1. d4 {[%clk 0:03:00]}  d5 {[%clk 0:03:00]} 2. c4 {[%clk 0:03:00]}  c6 {[%clk 0:03:00]} 3. cxd5 {[%clk 0:02:57]}  cxd5 {[%clk 0:03:01]} 4. Bg5 {[%clk 0:02:57]}  h6 {[%clk 0:03:00]} 5. Bh4 {[%clk 0:02:56]}  Qb6 {[%clk 0:03:01]} 6. Nc3 {[%clk 0:02:47]}  e6 {[%clk 0:03:01]} 7. e4 {[%clk 0:02:39]}  Qxb2 {[%clk 0:02:59]} 8. Rc1 {[%clk 0:02:32]}  Bb4 {[%clk 0:02:59]} 9. Bb5+ {[%clk 0:02:32]}  Nc6 {[%clk 0:02:57]} 10. Ne2 {[%clk 0:02:30]}  dxe4 {[%clk 0:02:48]} 11. O-O {[%clk 0:02:29]}  Nf6 {[%clk 0:02:48]} 12. Bxf6 {[%clk 0:02:22]}  gxf6 {[%clk 0:02:49]} 13. Nxe4 {[%clk 0:02:15]}  f5 {[%clk 0:02:41]} 14. Rxc6 {[%clk 0:02:02]}  bxc6 {[%clk 0:02:41]} 15. Bxc6+ {[%clk 0:02:02]}  Kf8 {[%clk 0:02:39]} 16. Bxa8 {[%clk 0:01:57]}  fxe4 {[%clk 0:02:40]} 17. Bxe4 {[%clk 0:01:42]}  Ba6 {[%clk 0:02:39]} 18. Bd3 {[%clk 0:01:41]}  Bxd3 {[%clk 0:02:34]} 19. Qxd3 {[%clk 0:01:42]}  Rg8 {[%clk 0:02:34]} 20. Rb1 {[%clk 0:01:31]}  Qd2 {[%clk 0:02:24]} 21. Qxd2 {[%clk 0:01:16]}  Bxd2 {[%clk 0:02:25]} 22. Rb2 {[%clk 0:01:14]}  Ba5 {[%clk 0:02:19]} 23. Rb8+ {[%clk 0:01:07]}  Kg7 {[%clk 0:02:19]} 24. Rxg8+ {[%clk 0:01:06]}  Kxg8 {[%clk 0:02:20]} 25. f3 {[%clk 0:01:07]}  Bb6 {[%clk 0:02:19]} 26. Kf2 {[%clk 0:01:06]}  Kf8 {[%clk 0:02:16]} 27. Ke3 {[%clk 0:01:07]}  Ke7 {[%clk 0:02:17]} 28. Kd3 {[%clk 0:01:07]}  Kd6 {[%clk 0:02:17]} 29. Kc4 {[%clk 0:01:07]}  h5 {[%clk 0:02:08]} 30. Nc3 {[%clk 0:01:04]}  f5 {[%clk 0:02:07]} 31. Ne2 {[%clk 0:00:56]}  h4 {[%clk 0:02:06]} 32. Nf4 {[%clk 0:00:52]}  Bd8 {[%clk 0:02:06]} 33. g3 {[%clk 0:00:37]}  Bg5 {[%clk 0:01:38]} 34. Nh3 {[%clk 0:00:30]}  Bf6 {[%clk 0:01:37]} 35. gxh4 {[%clk 0:00:25]}  Bxh4 {[%clk 0:01:38]} 36. Nf4 {[%clk 0:00:24]}  Bg5 {[%clk 0:01:39]} 37. Ng2 {[%clk 0:00:24]}  a6 {[%clk 0:01:36]} 38. h4 {[%clk 0:00:24]}  Bh6 {[%clk 0:01:37]} 39. h5 {[%clk 0:00:24]}  Ke7 {[%clk 0:01:35]} 40. d5 {[%clk 0:00:21]}  e5 {[%clk 0:01:35]} 41. Kc5 {[%clk 0:00:22]}  Kd7 {[%clk 0:01:29]} 42. d6 {[%clk 0:00:21]}  Bf8 {[%clk 0:01:29]} 43. Kd5 {[%clk 0:00:21]}  Bxd6 {[%clk 0:01:30]} 44. h6 {[%clk 0:00:22]}  Bf8 {[%clk 0:01:30]} 45. h7 {[%clk 0:00:22]}  Bg7 {[%clk 0:01:30]} 46. Nh4 {[%clk 0:00:22]}  e4 {[%clk 0:01:27]} 47. fxe4 {[%clk 0:00:17]}  f4 {[%clk 0:01:27]} 48. e5 {[%clk 0:00:16]}  Bh8 {[%clk 0:01:22]} 49. Ke4 {[%clk 0:00:15]}  f3 {[%clk 0:01:22]} 50. Kxf3 {[%clk 0:00:12]}  Bxe5 {[%clk 0:01:22]} 51. Ng6 {[%clk 0:00:11]}  Bg7 {[%clk 0:01:22]} 52. Ke4 {[%clk 0:00:11]}  Kd6 {[%clk 0:01:16]} 53. h8=Q {[%clk 0:00:09]}  Bxh8 {[%clk 0:01:16]} 54. Nxh8 {[%clk 0:00:10]}  Kc5 {[%clk 0:01:17]} 55. Kd3 {[%clk 0:00:10]}  Kb4 {[%clk 0:01:17]} 56. Kc2 {[%clk 0:00:11]}  Ka3 {[%clk 0:01:17]} 57. Kb1 {[%clk 0:00:12]}  Kb4 {[%clk 0:01:18]} 58. Ng6 {[%clk 0:00:12]}  Ka3 {[%clk 0:01:18]} 59. Nf4 {[%clk 0:00:12]}  Kb4 {[%clk 0:01:18]} 60. Ne6 {[%clk 0:00:12]}  a5 {[%clk 0:01:17]} 61. Kb2 {[%clk 0:00:12]}  Kb5 {[%clk 0:01:17]} 62. Kb3 {[%clk 0:00:12]}  Ka6 {[%clk 0:01:15]} 63. Ka4 {[%clk 0:00:12]}  Kb6 {[%clk 0:01:16]} 64. Nd4 {[%clk 0:00:12]}  Ka6 {[%clk 0:01:16]} 65. Nb3 {[%clk 0:00:12]}  Kb6 {[%clk 0:01:16]} 66. Nxa5 {[%clk 0:00:13]}  Ka6 {[%clk 0:01:16]} 67. Nb3 {[%clk 0:00:13]}  Kb7 {[%clk 0:01:16]} 68. Kb5 {[%clk 0:00:14]}  Ka7 {[%clk 0:01:17]} 69. a4 {[%clk 0:00:14]}  Kb7 {[%clk 0:01:17]} 70. a5 {[%clk 0:00:14]}  Ka7 {[%clk 0:01:17]} 71. a6 {[%clk 0:00:15]}  Kb8 {[%clk 0:01:17]} 72. Kb6 {[%clk 0:00:16]}  Ka8 {[%clk 0:01:18]} 73. Nd4 {[%clk 0:00:16]}  Kb8 {[%clk 0:01:18]} 74. Nb5 {[%clk 0:00:16]} 1-0


[Site "https://www.chess.com"]

[Event "Titled Tuesday Blitz March 29 Early 2022"]
[White "Dreev, Aleksey"]
[Black "Karolczuk, Iwo"]
[WhiteFideId "4100107"]
[BlackFideId "21816972"]
[WhiteElo "2625"]
[BlackElo "2243"]
[Result "0-1"]
[Round "09"]
[TimeControl "180+1"]
[Date "2022.03.29"]
[WhiteClock "0:00:04"]
[BlackClock "0:00:01"]

1. d4 {[%clk 0:03:00]}  Nf6 {[%clk 0:02:59]} 2. Nf3 {[%clk 0:03:00]}  g6 {[%clk 0:02:59]} 3. Bf4 {[%clk 0:03:00]}  Bg7 {[%clk 0:02:55]} 4. e3 {[%clk 0:03:00]}  O-O {[%clk 0:02:53]} 5. Be2 {[%clk 0:03:01]}  d6 {[%clk 0:02:50]} 6. O-O {[%clk 0:03:00]}  Nbd7 {[%clk 0:02:51]} 7. h3 {[%clk 0:03:00]}  b6 {[%clk 0:02:51]} 8. c4 {[%clk 0:02:59]}  Bb7 {[%clk 0:02:51]} 9. Nc3 {[%clk 0:03:00]}  Qe8 {[%clk 0:02:51]} 10. Qc2 {[%clk 0:02:58]}  e5 {[%clk 0:02:50]} 11. Bh2 {[%clk 0:02:59]}  Qe7 {[%clk 0:02:50]} 12. Rfd1 {[%clk 0:02:49]}  a6 {[%clk 0:02:48]} 13. d5 {[%clk 0:02:39]}  e4 {[%clk 0:02:44]} 14. Nd4 {[%clk 0:02:32]}  Rae8 {[%clk 0:02:39]} 15. b4 {[%clk 0:02:27]}  Nh5 {[%clk 0:02:09]} 16. Bxh5 {[%clk 0:02:22]}  gxh5 {[%clk 0:02:09]} 17. Nf5 {[%clk 0:02:22]}  Qg5 {[%clk 0:02:00]} 18. Nxg7 {[%clk 0:02:21]}  Qxg7 {[%clk 0:02:00]} 19. Nxe4 {[%clk 0:02:20]}  Bc8 {[%clk 0:01:55]} 20. Ng3 {[%clk 0:02:17]}  Nf6 {[%clk 0:01:43]} 21. Rd4 {[%clk 0:02:17]}  Kh8 {[%clk 0:01:36]} 22. Rad1 {[%clk 0:02:16]}  Rg8 {[%clk 0:01:36]} 23. Rh4 {[%clk 0:02:14]}  Qg5 {[%clk 0:01:28]} 24. Rdd4 {[%clk 0:02:14]}  Rg6 {[%clk 0:01:17]} 25. Qc3 {[%clk 0:02:07]}  Kg8 {[%clk 0:01:10]} 26. Kf1 {[%clk 0:01:56]}  Kf8 {[%clk 0:01:08]} 27. Rhf4 {[%clk 0:01:44]}  Re7 {[%clk 0:00:58]} 28. a3 {[%clk 0:01:42]}  Qe5 {[%clk 0:00:55]} 29. Rd3 {[%clk 0:01:38]}  Qg5 {[%clk 0:00:54]} 30. h4 {[%clk 0:01:34]}  Qe5 {[%clk 0:00:50]} 31. f3 {[%clk 0:01:28]}  b5 {[%clk 0:00:40]} 32. Ne2 {[%clk 0:01:14]}  Bf5 {[%clk 0:00:35]} 33. Qxe5 {[%clk 0:01:10]}  Rxe5 {[%clk 0:00:31]} 34. e4 {[%clk 0:01:09]}  bxc4 {[%clk 0:00:28]} 35. Rc3 {[%clk 0:01:07]}  Nxd5 {[%clk 0:00:27]} 36. exf5 {[%clk 0:00:40]}  Rxg2 {[%clk 0:00:12]} 37. Kxg2 {[%clk 0:00:14]}  Rxe2+ {[%clk 0:00:12]} 38. Kf1 {[%clk 0:00:14]}  Rxh2 {[%clk 0:00:11]} 39. Rfxc4 {[%clk 0:00:13]}  Nxc3 {[%clk 0:00:08]} 40. Rxc3 {[%clk 0:00:14]}  Rxh4 {[%clk 0:00:07]} 41. Rxc7 {[%clk 0:00:13]}  Rf4 {[%clk 0:00:05]} 42. Kg2 {[%clk 0:00:13]}  Rxf5 {[%clk 0:00:05]} 43. Ra7 {[%clk 0:00:11]}  Rd5 {[%clk 0:00:02]} 44. Rxa6 {[%clk 0:00:11]}  h4 {[%clk 0:00:02]} 45. a4 {[%clk 0:00:10]}  Ke7 {[%clk 0:00:03]} 46. b5 {[%clk 0:00:10]}  Kd8 {[%clk 0:00:03]} 47. Ra7 {[%clk 0:00:07]}  Rd4 {[%clk 0:00:02]} 48. b6 {[%clk 0:00:07]}  Kc8 {[%clk 0:00:02]} 49. a5 {[%clk 0:00:07]}  Kb8 {[%clk 0:00:01]} 50. Rxf7 {[%clk 0:00:05]}  Ra4 {[%clk 0:00:01]} 51. Ra7 {[%clk 0:00:04]}  d5 {[%clk 0:00:01]} 52. f4 {[%clk 0:00:04]}  Rxf4 {[%clk 0:00:01]} 0-1


[Site "https://www.chess.com"]